[Event "Late-Titled-Tuesday-Blitz-April-23-2024"]
[Site "Chess.com"]
[Date "2024.04.23"]
[Round "8"]
[White "th3d4rkness"]
[Black "Flaccidmoves"]
[Result "0-1"]
[WhiteElo "2126"]
[BlackElo "2394"]
[TimeControl "180+1"]
[EndTime "15:30:54 PDT"]
[Termination "Flaccidmoves won on time"]

1. e4 {[%clk 0:03:00.9]} 1... e5 {[%clk 0:02:58.5]} 2. Nf3 {[%clk 0:03:00.6]}
2... Nf6 {[%clk 0:02:58.7]} 3. Nxe5 {[%clk 0:02:55.3]} 3... Nc6 {[%clk
0:02:58.8]} 4. d4 {[%clk 0:02:49.8]} 4... Nxe4 {[%clk 0:02:42.8]} 5. Bd3 {[%clk
0:02:42.7]} 5... Nf6 {[%clk 0:02:26.9]} 6. c3 {[%clk 0:02:38]} 6... Be7 {[%clk
0:02:26.2]} 7. O-O {[%clk 0:02:33.7]} 7... O-O {[%clk 0:02:26]} 8. Nd2 {[%clk
0:02:30.4]} 8... d6 {[%clk 0:02:25]} 9. Nxc6 {[%clk 0:02:24.8]} 9... bxc6 {[%clk
0:02:25.9]} 10. Qf3 {[%clk 0:02:19.4]} 10... d5 {[%clk 0:02:25.4]} 11. Qg3
{[%clk 0:02:12.5]} 11... Bd6 {[%clk 0:02:21.3]} 12. Qh4 {[%clk 0:02:11.8]} 12...
c5 {[%clk 0:02:15.7]} 13. Nf3 {[%clk 0:02:11.4]} 13... c4 {[%clk 0:02:01.2]} 14.
Bc2 {[%clk 0:02:10.7]} 14... Rb8 {[%clk 0:01:54]} 15. Bg5 {[%clk 0:01:55.7]}
15... h6 {[%clk 0:01:53.1]} 16. Bxf6 {[%clk 0:01:47.1]} 16... Qxf6 {[%clk
0:01:54]} 17. Qxf6 {[%clk 0:01:46.8]} 17... gxf6 {[%clk 0:01:54.9]} 18. b4
{[%clk 0:01:43.9]} 18... a5 {[%clk 0:01:42.9]} 19. a3 {[%clk 0:01:42]} 19... Bg4
{[%clk 0:01:40.3]} 20. Rfe1 {[%clk 0:01:28.7]} 20... Bxf3 {[%clk 0:01:39]} 21.
gxf3 {[%clk 0:01:28.5]} 21... axb4 {[%clk 0:01:24.3]} 22. axb4 {[%clk
0:01:27.1]} 22... Ra8 {[%clk 0:01:24.3]} 23. Ba4 {[%clk 0:01:22.4]} 23... Bf4
{[%clk 0:01:23]} 24. Bc6 {[%clk 0:01:17.2]} 24... Rxa1 {[%clk 0:01:20.9]} 25.
Rxa1 {[%clk 0:01:17.4]} 25... Bd2 {[%clk 0:01:18.6]} 26. Ra3 {[%clk 0:01:16.3]}
26... Rd8 {[%clk 0:01:17]} 27. Kf1 {[%clk 0:01:14.4]} 27... Rd6 {[%clk
0:01:15.8]} 28. b5 {[%clk 0:01:08.7]} 28... Kg7 {[%clk 0:01:05.5]} 29. Ke2
{[%clk 0:01:08.6]} 29... Bf4 {[%clk 0:01:03]} 30. h3 {[%clk 0:01:06.8]} 30... f5
{[%clk 0:00:57.1]} 31. Kd1 {[%clk 0:01:01.4]} 31... Kf6 {[%clk 0:00:54.4]} 32.
Ra7 {[%clk 0:00:58.9]} 32... Rd8 {[%clk 0:00:53.8]} 33. Ra8 {[%clk 0:00:49.7]}
33... Rxa8 {[%clk 0:00:48.9]} 34. Bxa8 {[%clk 0:00:48.2]} 34... Ke6 {[%clk
0:00:46.7]} 35. Bc6 {[%clk 0:00:48]} 35... Kd6 {[%clk 0:00:43.3]} 36. Kc2 {[%clk
0:00:43.6]} 36... Bg5 {[%clk 0:00:41.4]} 37. Kd1 {[%clk 0:00:40.8]} 37... Bf6
{[%clk 0:00:26.1]} 38. f4 {[%clk 0:00:37.8]} 38... Be7 {[%clk 0:00:21.6]} 39.
Kd2 {[%clk 0:00:37.2]} 39... Ke6 {[%clk 0:00:21.3]} 40. Bb7 {[%clk 0:00:34.8]}
40... Ba3 {[%clk 0:00:18]} 41. Bc6 {[%clk 0:00:32.2]} 41... Bd6 {[%clk
0:00:16.8]} 42. Bb7 {[%clk 0:00:32.1]} 42... Bxf4+ {[%clk 0:00:16.2]} 43. Kd1
{[%clk 0:00:29.5]} 43... Kd6 {[%clk 0:00:16.3]} 44. Bc6 {[%clk 0:00:28.5]} 44...
Bh2 {[%clk 0:00:16]} 45. Be8 {[%clk 0:00:27.7]} 45... f6 {[%clk 0:00:15.7]} 46.
Bc6 {[%clk 0:00:24.8]} 46... Bg1 {[%clk 0:00:14.9]} 47. Ke2 {[%clk 0:00:25]}
47... Bh2 {[%clk 0:00:12.1]} 48. Kf3 {[%clk 0:00:23.9]} 48... Ke6 {[%clk
0:00:12.1]} 49. Ke3 {[%clk 0:00:19.9]} 49... Bd6 {[%clk 0:00:12.1]} 50. f4
{[%clk 0:00:18.1]} 50... Ba3 {[%clk 0:00:11.8]} 51. Kd2 {[%clk 0:00:17.9]} 51...
Bd6 {[%clk 0:00:10.8]} 52. Ke3 {[%clk 0:00:18.1]} 52... Bf8 {[%clk 0:00:11.5]}
53. Bb7 {[%clk 0:00:17.1]} 53... h5 {[%clk 0:00:11.7]} 54. Bc8+ {[%clk 0:00:16]}
54... Kd6 {[%clk 0:00:11.1]} 55. Bxf5 {[%clk 0:00:15.7]} 55... c5 {[%clk
0:00:11.1]} 56. Bg6 {[%clk 0:00:13]} 56... h4 {[%clk 0:00:08.7]} 57. dxc5+
{[%clk 0:00:09.2]} 57... Kxc5 {[%clk 0:00:09.6]} 58. Be8 {[%clk 0:00:08.8]}
58... f5 {[%clk 0:00:09.3]} 59. Bd7 {[%clk 0:00:08.2]} 59... Bg7 {[%clk
0:00:09.5]} 60. Kd2 {[%clk 0:00:07.9]} 60... d4 {[%clk 0:00:09.4]} 61. cxd4+
{[%clk 0:00:06.7]} 61... Bxd4 {[%clk 0:00:10.3]} 62. Bxf5 {[%clk 0:00:06.6]}
62... Kxb5 {[%clk 0:00:09.2]} 63. Kc2 {[%clk 0:00:06.8]} 63... Kc5 {[%clk
0:00:09.4]} 64. Bg4 {[%clk 0:00:06.6]} 64... Kd5 {[%clk 0:00:09.1]} 65. f5
{[%clk 0:00:07]} 65... Ke5 {[%clk 0:00:09.5]} 66. Be2 {[%clk 0:00:06.2]} 66...
c3 {[%clk 0:00:09]} 67. Bg4 {[%clk 0:00:05.9]} 67... Kf4 {[%clk 0:00:09.6]} 68.
Kd3 {[%clk 0:00:03.7]} 68... Bf6 {[%clk 0:00:10.1]} 0-1

[Event "Late-Titled-Tuesday-Blitz-April-23-2024"]
[Site "Chess.com"]
[Date "2024.04.23"]
[Round "8"]
[White "stasOR4ik"]
[Black "jinbojinbo"]
[Result "1-0"]
[WhiteElo "2481"]
[BlackElo "2627"]
[TimeControl "180+1"]
[EndTime "15:31:12 PDT"]
[Termination "stasOR4ik won on time"]

1. e4 {[%clk 0:03:00.9]} 1... e5 {[%clk 0:02:59.1]} 2. Nf3 {[%clk 0:03:01]} 2...
Nc6 {[%clk 0:02:59.4]} 3. Bb5 {[%clk 0:03:01]} 3... a6 {[%clk 0:02:56.8]} 4. Ba4
{[%clk 0:03:01.1]} 4... d6 {[%clk 0:02:57]} 5. O-O {[%clk 0:03:00.8]} 5... Bd7
{[%clk 0:02:56.8]} 6. c3 {[%clk 0:03:01]} 6... g6 {[%clk 0:02:55.9]} 7. d4
{[%clk 0:03:00.8]} 7... Bg7 {[%clk 0:02:56.1]} 8. Be3 {[%clk 0:02:53.8]} 8...
Nf6 {[%clk 0:02:54.9]} 9. Nbd2 {[%clk 0:02:53.1]} 9... O-O {[%clk 0:02:50.6]}
10. h3 {[%clk 0:02:52.7]} 10... Re8 {[%clk 0:02:49.5]} 11. Bxc6 {[%clk
0:02:43.4]} 11... Bxc6 {[%clk 0:02:48.3]} 12. dxe5 {[%clk 0:02:42.9]} 12... dxe5
{[%clk 0:02:25.6]} 13. Qc2 {[%clk 0:02:35.8]} 13... Qe7 {[%clk 0:02:25.3]} 14.
Bg5 {[%clk 0:02:23.7]} 14... Qe6 {[%clk 0:02:17.7]} 15. Rfe1 {[%clk 0:02:19.2]}
15... h6 {[%clk 0:02:14.3]} 16. Bh4 {[%clk 0:02:16.2]} 16... Nh5 {[%clk
0:02:12.4]} 17. Nb3 {[%clk 0:02:12.8]} 17... b6 {[%clk 0:02:06.1]} 18. Rad1
{[%clk 0:02:04.9]} 18... a5 {[%clk 0:02:05.7]} 19. Nc1 {[%clk 0:02:02.6]} 19...
a4 {[%clk 0:02:04.3]} 20. a3 {[%clk 0:02:01.3]} 20... g5 {[%clk 0:01:48.2]} 21.
Bg3 {[%clk 0:02:01.1]} 21... Rad8 {[%clk 0:01:45]} 22. Nd3 {[%clk 0:01:59.3]}
22... Nxg3 {[%clk 0:01:32.3]} 23. fxg3 {[%clk 0:01:58.5]} 23... f5 {[%clk
0:01:30]} 24. exf5 {[%clk 0:01:54]} 24... Qxf5 {[%clk 0:01:29.5]} 25. Nb4 {[%clk
0:01:51.9]} 25... Qxc2 {[%clk 0:01:25.7]} 26. Nxc2 {[%clk 0:01:51.2]} 26... e4
{[%clk 0:01:08.3]} 27. Nfd4 {[%clk 0:01:44.8]} 27... Bd7 {[%clk 0:01:08.3]} 28.
Ne3 {[%clk 0:01:40.8]} 28... Be5 {[%clk 0:01:00.6]} 29. g4 {[%clk 0:01:38.3]}
29... Bg3 {[%clk 0:00:57.1]} 30. Re2 {[%clk 0:01:34.8]} 30... c5 {[%clk
0:00:49.5]} 31. Ndc2 {[%clk 0:01:28.5]} 31... Bb5 {[%clk 0:00:45.3]} 32. Rxd8
{[%clk 0:01:18.2]} 32... Rxd8 {[%clk 0:00:46.2]} 33. c4 {[%clk 0:01:18.1]} 33...
Bc6 {[%clk 0:00:33]} 34. Kf1 {[%clk 0:01:00.1]} 34... Be5 {[%clk 0:00:25.4]} 35.
Nf5 {[%clk 0:00:44.2]} 35... Rd1+ {[%clk 0:00:18.9]} 36. Kf2 {[%clk 0:00:38.9]}
36... Kh7 {[%clk 0:00:18.1]} 37. Nce3 {[%clk 0:00:35.1]} 37... Rb1 {[%clk
0:00:18.1]} 38. Nd5 {[%clk 0:00:28.3]} 38... Rxb2 {[%clk 0:00:18]} 39. Nfe7
{[%clk 0:00:07.4]} 39... Bb7 {[%clk 0:00:14.7]} 40. Rxb2 {[%clk 0:00:06.7]}
40... Bxb2 {[%clk 0:00:14]} 41. Nxb6 {[%clk 0:00:06.8]} 41... Bxa3 {[%clk
0:00:05]} 42. Nxa4 {[%clk 0:00:07]} 42... Kg7 {[%clk 0:00:03.9]} 43. Ke3 {[%clk
0:00:06.9]} 43... Kf7 {[%clk 0:00:03.7]} 44. Nf5 {[%clk 0:00:07.2]} 44... Kg6
{[%clk 0:00:03.3]} 45. Nc3 {[%clk 0:00:06.7]} 45... Bc1+ {[%clk 0:00:01.1]} 46.
Ke2 {[%clk 0:00:06.4]} 46... h5 {[%clk 0:00:02]} 47. Ne7+ {[%clk 0:00:06]} 47...
Kf7 {[%clk 0:00:01.9]} 48. Ned5 {[%clk 0:00:06.4]} 48... hxg4 {[%clk 0:00:02.6]}
49. hxg4 {[%clk 0:00:06.5]} 49... Ke6 {[%clk 0:00:02.6]} 50. Nxe4 {[%clk
0:00:06.3]} 50... Bxd5 {[%clk 0:00:02.9]} 51. cxd5+ {[%clk 0:00:06.6]} 51...
Kxd5 {[%clk 0:00:03.6]} 52. Ng3 {[%clk 0:00:05.8]} 52... c4 {[%clk 0:00:03.8]}
53. Nf1 {[%clk 0:00:04.6]} 53... Bf4 {[%clk 0:00:04.3]} 54. g3 {[%clk
0:00:04.4]} 54... Bc1 {[%clk 0:00:04.2]} 55. Nh2 {[%clk 0:00:04.4]} 55... Ke4
{[%clk 0:00:03.9]} 56. Nf3 {[%clk 0:00:04.6]} 56... c3 {[%clk 0:00:04.2]} 57.
Ne1 {[%clk 0:00:04.9]} 57... Be3 {[%clk 0:00:04.5]} 58. Nc2 {[%clk 0:00:05.1]}
58... Bd2 {[%clk 0:00:05]} 59. Nb4 {[%clk 0:00:04.8]} 59... Kd4 {[%clk
0:00:05.3]} 60. Nc2+ {[%clk 0:00:05]} 60... Kc4 {[%clk 0:00:05.8]} 61. Na1
{[%clk 0:00:04.2]} 61... Kb4 {[%clk 0:00:05.7]} 62. Kd3 {[%clk 0:00:04.6]} 62...
Be1 {[%clk 0:00:05.1]} 63. Nc2+ {[%clk 0:00:05.1]} 63... Kb3 {[%clk 0:00:05.3]}
64. Nd4+ {[%clk 0:00:05.3]} 64... Kb2 {[%clk 0:00:05.3]} 65. Nc2 {[%clk
0:00:05.4]} 65... Bxg3 {[%clk 0:00:05.6]} 66. Ne3 {[%clk 0:00:05.9]} 66... Bf2
{[%clk 0:00:05.6]} 67. Nd1+ {[%clk 0:00:06.2]} 67... Kb1 {[%clk 0:00:05.1]} 68.
Nxc3+ {[%clk 0:00:05.9]} 68... Kb2 {[%clk 0:00:04.8]} 69. Nd1+ {[%clk
0:00:06.4]} 69... Kc1 {[%clk 0:00:05.4]} 70. Nxf2 {[%clk 0:00:07.3]} 1-0

[Event "Late-Titled-Tuesday-Blitz-April-23-2024"]
[Site "Chess.com"]
[Date "2024.04.23"]
[Round "8"]
[White "finec2"]
[Black "Indefatigable11"]
[Result "1/2-1/2"]
[WhiteElo "2235"]
[BlackElo "2392"]
[TimeControl "180+1"]
[EndTime "15:31:21 PDT"]
[Termination "Game drawn - insufficient material"]

1. e4 {[%clk 0:02:59.9]} 1... e5 {[%clk 0:03:00]} 2. Nf3 {[%clk 0:03:00]} 2...
Nc6 {[%clk 0:02:59.7]} 3. Bc4 {[%clk 0:02:59.7]} 3... Bc5 {[%clk 0:02:57.4]} 4.
c3 {[%clk 0:02:59.5]} 4... Nf6 {[%clk 0:02:51.4]} 5. d3 {[%clk 0:02:59.2]} 5...
O-O {[%clk 0:02:50.3]} 6. O-O {[%clk 0:02:59.1]} 6... d6 {[%clk 0:02:48.2]} 7.
a4 {[%clk 0:02:56.7]} 7... a5 {[%clk 0:02:47.7]} 8. Nbd2 {[%clk 0:02:55.8]} 8...
Be6 {[%clk 0:02:43.5]} 9. h3 {[%clk 0:02:54]} 9... Qd7 {[%clk 0:02:35]} 10. Bxe6
{[%clk 0:02:49.9]} 10... fxe6 {[%clk 0:02:32.3]} 11. Nc4 {[%clk 0:02:44.1]}
11... Qf7 {[%clk 0:02:16.3]} 12. d4 {[%clk 0:02:42.1]} 12... exd4 {[%clk
0:02:15.4]} 13. cxd4 {[%clk 0:02:41.5]} 13... Ba7 {[%clk 0:02:15.5]} 14. Re1
{[%clk 0:01:46.1]} 14... e5 {[%clk 0:02:02.9]} 15. d5 {[%clk 0:01:43.6]} 15...
Nd4 {[%clk 0:02:01.8]} 16. Nxd4 {[%clk 0:01:42.6]} 16... Bxd4 {[%clk 0:02:02.2]}
17. Be3 {[%clk 0:01:37.4]} 17... Bxe3 {[%clk 0:02:00.3]} 18. Rxe3 {[%clk
0:01:31.7]} 18... Rfd8 {[%clk 0:01:49.2]} 19. b3 {[%clk 0:01:14.8]} 19... Rd7
{[%clk 0:01:37.1]} 20. f3 {[%clk 0:01:13.2]} 20... Ra6 {[%clk 0:01:25.7]} 21.
Rd3 {[%clk 0:01:11.6]} 21... Ne8 {[%clk 0:01:19.4]} 22. Qd2 {[%clk 0:01:10.3]}
22... b6 {[%clk 0:01:14.6]} 23. Rc1 {[%clk 0:01:07.3]} 23... Ra8 {[%clk
0:01:14.3]} 24. Rdc3 {[%clk 0:01:06.4]} 24... Qe7 {[%clk 0:01:12.4]} 25. Ne3
{[%clk 0:01:06]} 25... g6 {[%clk 0:01:11]} 26. Rc6 {[%clk 0:01:00.7]} 26... Ra7
{[%clk 0:01:06.5]} 27. R1c4 {[%clk 0:01:00.3]} 27... Nf6 {[%clk 0:01:04.7]} 28.
Ng4 {[%clk 0:00:53.2]} 28... Nh5 {[%clk 0:01:02.8]} 29. Kh2 {[%clk 0:00:35.7]}
29... Qh4 {[%clk 0:00:57.6]} 30. Qf2 {[%clk 0:00:35.4]} 30... Qg5 {[%clk
0:00:54.5]} 31. Qe3 {[%clk 0:00:30.6]} 31... Qh4 {[%clk 0:00:46.8]} 32. Qf2
{[%clk 0:00:30.2]} 32... Qe7 {[%clk 0:00:46.5]} 33. g3 {[%clk 0:00:26.4]} 33...
Ng7 {[%clk 0:00:44.1]} 34. h4 {[%clk 0:00:18.7]} 34... h5 {[%clk 0:00:43.9]} 35.
Ne3 {[%clk 0:00:18.1]} 35... Qf6 {[%clk 0:00:39.9]} 36. Kg2 {[%clk 0:00:15.8]}
36... Rf7 {[%clk 0:00:38.1]} 37. Rc3 {[%clk 0:00:13.3]} 37... Ne8 {[%clk
0:00:34.8]} 38. Rd3 {[%clk 0:00:09.9]} 38... Qe7 {[%clk 0:00:33]} 39. Nc4 {[%clk
0:00:09.5]} 39... Nf6 {[%clk 0:00:30.2]} 40. Nd2 {[%clk 0:00:09.7]} 40... Ra8
{[%clk 0:00:24.5]} 41. Qe3 {[%clk 0:00:10]} 41... Raf8 {[%clk 0:00:19.9]} 42.
Qg5 {[%clk 0:00:09.8]} 42... Kg7 {[%clk 0:00:18.9]} 43. Rdc3 {[%clk 0:00:09.2]}
43... Qd8 {[%clk 0:00:15.2]} 44. Nc4 {[%clk 0:00:09.3]} 44... Qd7 {[%clk
0:00:12.9]} 45. Ne3 {[%clk 0:00:09]} 45... Ne8 {[%clk 0:00:11.5]} 46. Nf5+
{[%clk 0:00:07.6]} 46... Rxf5 {[%clk 0:00:07.9]} 47. exf5 {[%clk 0:00:08.1]}
47... Rxf5 {[%clk 0:00:08]} 48. Qe3 {[%clk 0:00:08.5]} 48... Qf7 {[%clk
0:00:07.5]} 49. Kf2 {[%clk 0:00:08]} 49... Nf6 {[%clk 0:00:04.8]} 50. Rxc7
{[%clk 0:00:08.2]} 50... Ng4+ {[%clk 0:00:04.6]} 51. Ke2 {[%clk 0:00:07.8]}
51... Nxe3 {[%clk 0:00:04.8]} 52. Rxf7+ {[%clk 0:00:08.3]} 52... Rxf7 {[%clk
0:00:05.1]} 53. Kxe3 {[%clk 0:00:09.2]} 53... Rb7 {[%clk 0:00:03.1]} 54. Ke4
{[%clk 0:00:09.5]} 54... b5 {[%clk 0:00:03.5]} 55. Rc6 {[%clk 0:00:09.4]} 55...
bxa4 {[%clk 0:00:03.8]} 56. bxa4 {[%clk 0:00:09.6]} 56... Rb4+ {[%clk
0:00:04.3]} 57. Ke3 {[%clk 0:00:10.4]} 57... Rxa4 {[%clk 0:00:04.9]} 58. Rxd6
{[%clk 0:00:10.9]} 58... Ra3+ {[%clk 0:00:05.5]} 59. Ke4 {[%clk 0:00:11.2]}
59... Ra4+ {[%clk 0:00:06.1]} 60. Kxe5 {[%clk 0:00:11]} 60... Ra3 {[%clk
0:00:06.7]} 61. f4 {[%clk 0:00:11.1]} 61... Rxg3 {[%clk 0:00:06.5]} 62. Rd7+
{[%clk 0:00:10.8]} 62... Kh6 {[%clk 0:00:06.7]} 63. Ra7 {[%clk 0:00:11.4]} 63...
Re3+ {[%clk 0:00:06.4]} 64. Kf6 {[%clk 0:00:11.7]} 64... Re4 {[%clk 0:00:06.1]}
65. f5 {[%clk 0:00:10.6]} 65... gxf5 {[%clk 0:00:06]} 66. Kxf5 {[%clk
0:00:11.2]} 66... Rd4 {[%clk 0:00:06.5]} 67. Rxa5 {[%clk 0:00:11.3]} 67... Rxh4
{[%clk 0:00:06.4]} 68. d6 {[%clk 0:00:10.5]} 68... Rd4 {[%clk 0:00:06.3]} 69.
Ke6 {[%clk 0:00:10.9]} 69... h4 {[%clk 0:00:05.9]} 70. Ra8 {[%clk 0:00:10.3]}
70... Kg6 {[%clk 0:00:04.9]} 71. Rg8+ {[%clk 0:00:09.5]} 71... Kh7 {[%clk
0:00:04.7]} 72. Rg1 {[%clk 0:00:09.2]} 72... h3 {[%clk 0:00:04.8]} 73. Rh1
{[%clk 0:00:09.4]} 73... Rd3 {[%clk 0:00:04.6]} 74. d7 {[%clk 0:00:09.7]} 74...
Kg6 {[%clk 0:00:04.9]} 75. Ke7 {[%clk 0:00:09.7]} 75... Kg5 {[%clk 0:00:05.2]}
76. d8=Q {[%clk 0:00:09.3]} 76... Rxd8 {[%clk 0:00:05.3]} 77. Kxd8 {[%clk
0:00:09.8]} 77... Kg4 {[%clk 0:00:05.8]} 78. Rxh3 {[%clk 0:00:10]} 78... Kxh3
{[%clk 0:00:06]} 1/2-1/2

[Event "Late-Titled-Tuesday-Blitz-April-23-2024"]
[Site "Chess.com"]
[Date "2024.04.23"]
[Round "8"]
[White "Aygehovit1992"]
[Black "dropstoneDP"]
[Result "1/2-1/2"]
[WhiteElo "2721"]
[BlackElo "2995"]
[TimeControl "180+1"]
[EndTime "15:32:38 PDT"]
[Termination "Game drawn by repetition"]

1. e4 {[%clk 0:03:00.9]} 1... e5 {[%clk 0:03:00.2]} 2. Nf3 {[%clk 0:03:01.5]}
2... Nf6 {[%clk 0:03:00.7]} 3. Nxe5 {[%clk 0:03:01]} 3... d6 {[%clk 0:03:01.2]}
4. Nf3 {[%clk 0:03:01.7]} 4... Nxe4 {[%clk 0:03:01.8]} 5. Qe2 {[%clk 0:03:02.5]}
5... Qe7 {[%clk 0:03:02.2]} 6. d3 {[%clk 0:03:03.2]} 6... Nf6 {[%clk 0:03:02.8]}
7. Bg5 {[%clk 0:03:03.9]} 7... Qxe2+ {[%clk 0:03:03.4]} 8. Bxe2 {[%clk
0:03:04.8]} 8... Be7 {[%clk 0:03:03.7]} 9. Nc3 {[%clk 0:03:05.3]} 9... h6 {[%clk
0:03:04.3]} 10. Bd2 {[%clk 0:03:04.7]} 10... Nc6 {[%clk 0:03:04.3]} 11. O-O-O
{[%clk 0:02:58.7]} 11... Be6 {[%clk 0:03:04.4]} 12. Nh4 {[%clk 0:02:55.1]} 12...
g5 {[%clk 0:03:03.5]} 13. Nf3 {[%clk 0:02:54.6]} 13... O-O-O {[%clk 0:03:02.6]}
14. Rde1 {[%clk 0:02:54.1]} 14... Rde8 {[%clk 0:03:00.2]} 15. h3 {[%clk
0:02:54]} 15... Rhg8 {[%clk 0:02:55.3]} 16. Nb5 {[%clk 0:02:51]} 16... Nd5
{[%clk 0:02:51.5]} 17. a3 {[%clk 0:02:49]} 17... Nf4 {[%clk 0:02:49.7]} 18. Bxf4
{[%clk 0:02:46]} 18... gxf4 {[%clk 0:02:50.6]} 19. Rhg1 {[%clk 0:02:45]} 19...
Bf6 {[%clk 0:02:50.6]} 20. Nc3 {[%clk 0:02:37.2]} 20... d5 {[%clk 0:02:42.3]}
21. Nd1 {[%clk 0:02:20.2]} 21... Kd7 {[%clk 0:02:37.8]} 22. Nd2 {[%clk
0:02:20.1]} 22... Nd4 {[%clk 0:02:34.2]} 23. c3 {[%clk 0:02:05.7]} 23... Nxe2+
{[%clk 0:02:34.2]} 24. Rxe2 {[%clk 0:02:06.4]} 24... Bxh3 {[%clk 0:02:33.8]} 25.
Rxe8 {[%clk 0:02:05.2]} 25... Kxe8 {[%clk 0:02:34.7]} 26. Rh1 {[%clk 0:01:49]}
26... Bxg2 {[%clk 0:02:32.7]} 27. Rxh6 {[%clk 0:01:49.7]} 27... Bg5 {[%clk
0:02:31.7]} 28. Rh5 {[%clk 0:01:44.8]} 28... d4 {[%clk 0:02:15.5]} 29. cxd4
{[%clk 0:01:37.2]} 29... Bf6 {[%clk 0:02:14.1]} 30. d5 {[%clk 0:01:37.4]} 30...
Bd4 {[%clk 0:02:05.4]} 31. Rf5 {[%clk 0:01:25.3]} 31... Rg4 {[%clk 0:01:45.3]}
32. Ne4 {[%clk 0:01:25.2]} 32... Bxe4 {[%clk 0:01:36.3]} 33. dxe4 {[%clk
0:01:24.6]} 33... f3 {[%clk 0:01:37]} 34. e5 {[%clk 0:01:17.2]} 34... Re4 {[%clk
0:01:36.3]} 35. e6 {[%clk 0:01:14.4]} 35... fxe6 {[%clk 0:01:35.7]} 36. dxe6
{[%clk 0:01:15.3]} 36... Rxe6 {[%clk 0:01:35.9]} 37. Rxf3 {[%clk 0:01:15.9]}
37... Re2 {[%clk 0:01:28.8]} 38. Rd3 {[%clk 0:01:00.2]} 38... Bxf2 {[%clk
0:01:28.4]} 39. Rd2 {[%clk 0:00:56]} 39... Rxd2 {[%clk 0:01:26.6]} 40. Kxd2
{[%clk 0:00:56.1]} 40... Bd4 {[%clk 0:01:27.2]} 41. Kd3 {[%clk 0:00:56.1]} 41...
Bf6 {[%clk 0:01:27.8]} 42. b3 {[%clk 0:00:54.9]} 42... Kd7 {[%clk 0:01:28.2]}
43. Kc4 {[%clk 0:00:54.5]} 43... c6 {[%clk 0:01:25.2]} 44. a4 {[%clk 0:00:54.8]}
44... Kd6 {[%clk 0:01:22]} 45. Nf2 {[%clk 0:00:53.6]} 45... Be7 {[%clk
0:01:19.5]} 46. b4 {[%clk 0:00:53.1]} 46... a6 {[%clk 0:01:07.9]} 47. a5 {[%clk
0:00:53.3]} 47... Ke5 {[%clk 0:01:02.1]} 48. Nd3+ {[%clk 0:00:53.3]} 48... Kd6
{[%clk 0:00:46.1]} 49. Nc5 {[%clk 0:00:52]} 49... Kc7 {[%clk 0:00:46.1]} 50.
Ne6+ {[%clk 0:00:52.1]} 50... Kd7 {[%clk 0:00:46.5]} 51. Nd4 {[%clk 0:00:50.9]}
51... Bf8 {[%clk 0:00:45.3]} 52. Nf3 {[%clk 0:00:47.7]} 52... Bg7 {[%clk
0:00:40.1]} 53. Nd2 {[%clk 0:00:47.1]} 53... Bf6 {[%clk 0:00:37.9]} 54. Ne4
{[%clk 0:00:47.3]} 54... Be7 {[%clk 0:00:38.6]} 55. Nc3 {[%clk 0:00:47.6]} 55...
Kc8 {[%clk 0:00:32.8]} 56. Na4 {[%clk 0:00:47.3]} 56... Kc7 {[%clk 0:00:32.5]}
57. Nc3 {[%clk 0:00:47.5]} 57... Bg5 {[%clk 0:00:19.5]} 58. Ne4 {[%clk
0:00:47.4]} 58... Be3 {[%clk 0:00:19.9]} 59. Nc3 {[%clk 0:00:47.3]} 59... Bg1
{[%clk 0:00:14.5]} 60. Na4 {[%clk 0:00:46.6]} 60... Kd6 {[%clk 0:00:14.4]} 61.
Nc3 {[%clk 0:00:46.1]} 61... Be3 {[%clk 0:00:08.6]} 62. Ne4+ {[%clk 0:00:46]}
62... Kd7 {[%clk 0:00:08.7]} 63. Nf6+ {[%clk 0:00:45.6]} 63... Kd8 {[%clk
0:00:05.7]} 64. Ne4 {[%clk 0:00:45.6]} 64... Kc7 {[%clk 0:00:06.4]} 65. Nc3
{[%clk 0:00:44.2]} 65... Bf2 {[%clk 0:00:05.9]} 66. Na4 {[%clk 0:00:42.7]} 66...
Ba7 {[%clk 0:00:05.3]} 67. Nc3 {[%clk 0:00:42.7]} 67... Kd6 {[%clk 0:00:02.7]}
68. Ne4+ {[%clk 0:00:42.5]} 68... Ke6 {[%clk 0:00:03.4]} 69. Nd2 {[%clk
0:00:40.3]} 69... Bb8 {[%clk 0:00:03.6]} 70. Ne4 {[%clk 0:00:40.3]} 70... Bd6
{[%clk 0:00:03.9]} 71. Ng5+ {[%clk 0:00:38.5]} 71... Kd7 {[%clk 0:00:03.9]} 72.
Nf3 {[%clk 0:00:38.4]} 72... c5 {[%clk 0:00:03.5]} 73. bxc5 {[%clk 0:00:38.3]}
73... Bc7 {[%clk 0:00:03.5]} 74. Kb4 {[%clk 0:00:37.3]} 74... Kc6 {[%clk
0:00:02.9]} 75. Nd4+ {[%clk 0:00:24.4]} 75... Kd5 {[%clk 0:00:03]} 76. Nf5
{[%clk 0:00:25.1]} 76... Bf4 {[%clk 0:00:02.2]} 77. Ne7+ {[%clk 0:00:24.4]}
77... Ke6 {[%clk 0:00:02.6]} 78. Nc8 {[%clk 0:00:21.4]} 78... Bd2+ {[%clk
0:00:02.7]} 79. Ka4 {[%clk 0:00:21]} 79... Kd5 {[%clk 0:00:03]} 80. Nd6 {[%clk
0:00:20.5]} 80... Kc6 {[%clk 0:00:03.6]} 81. Ne4 {[%clk 0:00:19.8]} 81... Be1
{[%clk 0:00:02.8]} 82. Nd6 {[%clk 0:00:19.2]} 82... Bf2 {[%clk 0:00:03.1]} 83.
Ne4 {[%clk 0:00:12.4]} 83... Bxc5 {[%clk 0:00:02.8]} 84. Nc3 {[%clk 0:00:10.1]}
84... Bd4 {[%clk 0:00:02.8]} 85. Ne4 {[%clk 0:00:10.1]} 85... Kd5 {[%clk
0:00:03]} 86. Nd2 {[%clk 0:00:10.4]} 86... Bc3 {[%clk 0:00:03.4]} 87. Nb3 {[%clk
0:00:09.6]} 87... Kc4 {[%clk 0:00:03.3]} 88. Nc1 {[%clk 0:00:09.7]} 88... Bf6
{[%clk 0:00:02.7]} 89. Nb3 {[%clk 0:00:09.6]} 89... Bg5 {[%clk 0:00:02.8]} 90.
Na1 {[%clk 0:00:06]} 90... Kc3 {[%clk 0:00:03.2]} 91. Nb3 {[%clk 0:00:06]} 91...
Be3 {[%clk 0:00:03.8]} 92. Na1 {[%clk 0:00:05.2]} 92... Kb2 {[%clk 0:00:02.2]}
93. Nb3 {[%clk 0:00:05.5]} 93... Kc3 {[%clk 0:00:02.7]} 94. Na1 {[%clk
0:00:05.7]} 94... Bc5 {[%clk 0:00:02.9]} 95. Nb3 {[%clk 0:00:06.6]} 95... Bd6
{[%clk 0:00:03.3]} 96. Nc1 {[%clk 0:00:06.5]} 96... Be5 {[%clk 0:00:02.5]} 97.
Nb3 {[%clk 0:00:05.8]} 97... Kc4 {[%clk 0:00:03.1]} 98. Nd2+ {[%clk 0:00:05.7]}
98... Kd5 {[%clk 0:00:03.6]} 99. Nb3 {[%clk 0:00:06.6]} 99... Bc7 {[%clk
0:00:03.8]} 100. Nd2 {[%clk 0:00:05.9]} 100... Bf4 {[%clk 0:00:04.2]} 101. Nb3
{[%clk 0:00:05.9]} 101... Bh6 {[%clk 0:00:04.7]} 102. Na1 {[%clk 0:00:05]}
102... Kc4 {[%clk 0:00:04.5]} 103. Nb3 {[%clk 0:00:05.9]} 103... Bg5 {[%clk
0:00:02.8]} 104. Na1 {[%clk 0:00:05.8]} 104... Be7 {[%clk 0:00:03]} 105. Nb3
{[%clk 0:00:06.7]} 105... Bb4 {[%clk 0:00:03.2]} 106. Na1 {[%clk 0:00:06.1]}
106... Be1 {[%clk 0:00:02.5]} 107. Nc2 {[%clk 0:00:05.7]} 107... Bd2 {[%clk
0:00:02.3]} 108. Na1 {[%clk 0:00:03.9]} 108... Be3 {[%clk 0:00:01.9]} 109. Nb3
{[%clk 0:00:04.2]} 109... Kc3 {[%clk 0:00:01.9]} 1/2-1/2